Cogmind - Beta 13 @@@ ROGUE MODE // 2024.04.28 @ 19:26:42 Player: your mirastress Result: Destroyed by ZX-QEX(R) with Subdweller Machine Gun Performance ------------- Evolutions (0) 0 Regions Visited (3) 600 Robots Destroyed (24) 120 Value Destroyed (536) 536 Prototype IDs (2) 40 Alien Tech Used (0) 0 Bonus (0) 0 TOTAL SCORE: 1296 Bonus ------- None Cogmind --------- Core Integrity 0/250 Matter 195/300 Energy 180/200 System Corruption 0% Temperature Cool (0) Movement Rolling (95) Ox1 Location -10/Subcaves Parts ------- > --- POWER (1) -------- Subdweller Power Source > --- PROPULSION (2) --- Wheel > --- UTILITY (2) ------ Improved Terrain Scanner Terrain Scan Processor > --- WEAPON (2) ------- Barrage Gun Makeshift Shrapnel Gun > --- INVENTORY (5) ---- Subdweller Power Source Small Storage Unit Assault Rifle Mining Claw Peak State ------------ > --- POWER ------------ Subdweller Power Source > --- PROPULSION ------- Wheel Subdweller Monowheel > --- UTILITY ---------- Improved Terrain Scanner Terrain Scan Processor > --- WEAPON ----------- Assault Rifle Makeshift Shrapnel Gun > --- INVENTORY -------- Ion Engine Flight Unit Small Storage Unit Battle Rifle Mining Claw [Rating: 15] Favorites ----------- Power Subdweller Power Source Engine Subdweller Power Source Propulsion Flight Unit Leg Aluminum Leg Wheel Wheel Flight Unit Flight Unit Utility Improved Terrain Scanner Device Improved Terrain Scanner Storage Small Matter Pod Processor Terrain Scan Processor Weapon Light Assault Rifle Ballistic Gun Light Assault Rifle Launcher Grenade Launcher Special Weapon Welding Torch Slashing Weapon Mining Claw Special Melee Weapon Datajack Build | -11 -10 -10 -10 ------- Run | Yrd Mat Min Sub Slots Evolved . | . . . . Power . | . . . . Propulsion . | . . . . Utility . | . . . . Weapon . | . . . . Parts Attached 73 | 5 14 26 28 Power 7 | 1 3 . 3 Engine 7 | 1 3 . 3 Core . | . . . . Reactor . | . . . . Propulsion 13 | 2 5 4 2 Treads . | . . . . Leg 5 | 2 3 . . Wheel 2 | . . . 2 Hover . | . . . . Flight 6 | . 2 4 . Utility 4 | . 2 2 . Device 2 | . 1 1 . Storage 1 | . 1 . . Processor 1 | . . 1 . Hackware . | . . . . Protection . | . . . . Artifact . | . . . . Weapon 49 | 2 4 20 23 Energy Gun . | . . . . Energy Cannon . | . . . . Ballistic Gun 36 | 2 3 12 19 Ballistic Cannon . | . . . . Launcher 1 | . 1 . . Special Weapon 1 | . . 1 . Impact Weapon . | . . . . Slashing Weapon 6 | . . 2 4 Piercing Weapon . | . . . . Special Melee Weapon 5 | . . 5 . Unidentified Prototypes . | . . . . Parts Lost 2 | . . . 2 Power . | . . . . Propulsion 1 | . . . 1 Utility . | . . . . Weapon 1 | . . . 1 Highest Loss Streak 1 | . . . 1 To Critical Strikes . | . . . . Average Slot Usage (%) 91 | . 93 89 91 Engine 13 | . 13 14 14 Leg 3 | . 24 . . Wheel 7 | . . . 14 Flight 12 | . 2 28 7 Device 13 | . 12 14 14 Storage 1 | . 11 . . Processor 10 | . . 9 14 Ballistic Gun 23 | . 26 17 25 Slashing Weapon 1 | . . 3 . Naked Turns . | . . . . Heaviest Build 11 | 5 9 8 11 Greatest Support 30 | 20 20 8 30 Greatest Overweight (x) 1 | . . . 1 Average Overweight (x) . | . . . . Largest Inventory Capacity 5 | 5 5 5 5 Average Capacity 5 | 5 5 5 5 Most Carried 5 | 5 5 5 5 Average Carried 4 | 1 4 4 4 Final Capacity 5 | 5 5 5 5 Final Carried 5 | 5 5 5 4 Class Distribution -------------------- 64% | Scavenger-Mutant 35% | Mutant Dominant Class ---------------- Mutant | -10/Materials Scavenger-Mutant | -10/Mines Scavenger-Mutant | -10/Subcaves Resources | -11 -10 -10 -10 ----------- Run | Yrd Mat Min Sub Matter Collected 1074 | 260 123 258 433 Remotely . | . . . . Salvage Created 635 | 49 123 223 240 Parts 51 | 5 9 22 15 Haulers Intercepted . | . . . . Recyclers Shooed 1 | . . 1 . Parts Field Recycled . | . . . . Retrieved Matter . | . . . . Parts Self-Destructed 11 | . . . 11 Prevented . | . . . . Kills | -11 -10 -10 -10 ------- Run | Yrd Mat Min Sub Combat Hostiles Destroyed 19 | 1 5 6 7 Guns 17 | 1 3 6 7 AOE 2 | . 2 . . Classes Destroyed 9 | 2 2 3 2 Worker 1 | 1 . . . Builder 1 | . . 1 . Tunneler 1 | . . 1 . Recycler 1 | . . 1 . Watcher 1 | . 1 . . Swarmer 10 | . 3 6 1 Grunt 4 | 1 2 . 1 Sentry 1 | . . . 1 Subdweller 4 | . . . 4 Best Kill Streak 3 | 1 3 3 2 Combat Bots Only 3 | 1 3 3 2 Max Kills in Single Turn 2 | 1 2 1 1 Gunslinging . | . . . . Exploded 2 | . 2 . . Melee . | . . . . Uniques/NPCs Destroyed . | . . . . Combat | -11 -10 -10 -10 -------- Run | Yrd Mat Min Sub Hostile Shots Fired 93 | 2 38 17 36 Missed 28 | . 10 4 14 Damage Taken 775 | 22 268 104 381 Core 259 | . 62 33 164 Absorbed by Shields . | . . . . Core Remaining (%) 100 | 100 . . . Volleys Fired 66 | 5 17 21 23 Largest 2 | 2 2 2 2 Hottest 53 | 40 50 40 53 Shots Fired 124 | 10 34 37 43 Gun 122 | 10 33 36 43 Cannon . | . . . . Launcher 1 | . 1 . . Special 1 | . . 1 . Kinetic 122 | 10 33 36 43 Thermal 1 | . . 1 . Explosive 1 | . 1 . . Electromagnetic . | . . . . Robot Hit Streak 11 | 6 8 6 11 Robot Miss Streak 3 | 1 2 3 3 Penetration Max . | . . . . Secondary Targets . | . . . . Shots Hit Robots 85 | 7 23 26 29 Core Hits 39 | 4 9 11 15 Critical Kills . | . . . . Critical Parts Destroyed . | . . . . Critical Strikes 1 | . . . 1 Destroy 1 | . . . 1 Melee Attacks 34 | . . 23 11 Impact . | . . . . Slashing 25 | . . 14 11 Piercing . | . . . . Sneak Attacks 9 | . . 9 . Combat Hostiles . | . . . . Follow-up Attacks . | . . . . Damage Inflicted 961 | 52 235 170 504 Guns 902 | 52 176 170 504 Cannons . | . . . . Explosions 59 | . 59 . . Melee . | . . . . Ramming . | . . . . Kinetic 902 | 52 176 170 504 Thermal . | . . . . Explosive 59 | . 59 . . Electromagnetic . | . . . . Impact . | . . . . Slashing . | . . . . Piercing . | . . . . Highest Corruption . | . . . . Average Corruption . | . . . . Corruption Purged . | . . . . Corruption Blocked . | . . . . Overload Shots . | . . . . Overflow Damage . | . . . . Projectiles . | . . . . Explosions . | . . . . Melee . | . . . . Knockbacks . | . . . . Impact . | . . . . Kinetic . | . . . . Secondary . | . . . . Self-Inflicted Damage . | . . . . Shots . | . . . . Rammed . | . . . . Targets Rammed . | . . . . Kicked . | . . . . Crushed . | . . . . Highest Temperature 8 | 6 1 8 . Average Temperature 4 | 6 1 4 . Received Heat Transfer 189 | 12 84 . 93 Siege Activations . | . . . . Robots Corrupted . | . . . . Combat Hostiles . | . . . . Parts Fried . | . . . . Impact Corruptions . | . . . . Robots Melted . | . . . . Combat Hostiles . | . . . . Parts Melted . | . . . . Heat Transferred . | . . . . Parts Sabotaged . | . . . . Parts Stolen . | . . . . Parts Stripped . | . . . . Power Chain Reactions . | . . . . Alert | -11 -10 -10 -10 ------- Run | Yrd Mat Min Sub Peak Influence 289 | 25 229 289 . Initial 88 | . 16 88 . Average 130 | 6 134 157 . Maximum Alert Level 1 | . 1 1 . Low Security (%) 67 | 100 48 71 . Level 1 32 | . 51 28 . Level 2 . | . . . . Level 3 . | . . . . Level 4 . | . . . . Level 5 . | . . . . High Security . | . . . . Max Security . | . . . . Squads Dispatched 1 | . 1 . . Investigation . | . . . . Extermination . | . . . . Reinforcement 1 | . 1 . . Assault . | . . . . Garrison . | . . . . Intercept . | . . . . Searches Triggered . | . . . . Construction Impeded . | . . . . Haulers Reinforced . | . . . . Active Scanning Responses . | . . . . Cargo Convoy Interrupts . | . . . . Stealth | -11 -10 -10 -10 --------- Run | Yrd Mat Min Sub Distress Signals . | . . . . Communications Jammed . | . . . . Distress Signals . | . . . . Times Spotted 26 | 1 7 6 12 Peak Tracking Total 5 | 1 5 3 3 Tactical Retreats 2 | . . . 2 Traps | -11 -10 -10 -10 ------- Run | Yrd Mat Min Sub Traps Triggered 1 | . 1 . . Indirectly . | . . . . Trap Hack Attempts . | . . . . Triggered . | . . . . Disarmed . | . . . . Reprogrammed . | . . . . Reused . | . . . . Traps Extracted . | . . . . Installed . | . . . . Triggered . | . . . . Machines | -11 -10 -10 -10 ---------- Run | Yrd Mat Min Sub Machines Disabled 6 | . 3 3 . Max in Single Turn 3 | . 3 1 . Machines Repaired . | . . . . Machines Dismantled . | . . . . Machines Sabotaged . | . . . . Overloaded Fab Kills . | . . . . Hacking | -11 -10 -10 -10 --------- Run | Yrd Mat Min Sub Machines Accessed 2 | . 1 . 1 Terminals 1 | . 1 . . Fabricators . | . . . . Repair Stations . | . . . . Recycling Units . | . . . . Scanalyzers . | . . . . Garrison Access . | . . . . Total Hacks 7 | . 3 . 4 Successful 6 | . 2 . 4 Failed 1 | . 1 . . Catastrophic . | . . . . Database Lockouts . | . . . . Manual 3 | . . . 3 Terminals 3 | . 3 . . Fabricators . | . . . . Repair Stations . | . . . . Recycling Units . | . . . . Scanalyzers . | . . . . Garrison Access . | . . . . Terminal Hacks 6 | . 2 . 4 Record 5 | . 1 . 4 Prototype ID Bank 1 | . 1 . . Fabricator Hacks . | . . . . Repair Station Hacks . | . . . . Recycling Unit Hacks . | . . . . Scanalyzer . | . . . . Garrison Access Hacks . | . . . . Unauthorized Hacks . | . . . . Terminals . | . . . . Fabricators . | . . . . Repair Stations . | . . . . Recycling Units . | . . . . Scanalyzers . | . . . . Garrison Access . | . . . . Data Cores Recovered . | . . . . Used . | . . . . Hacking Detections 1 | . 1 . . Full Trace Events . | . . . . Feedback Events . | . . . . Feedback Blocked . | . . . . Robot Schematics Acquired . | . . . . Robots Built . | . . . . Authchips . | . . . . Time . | . . . . Total Robot Build Rating . | . . . . Part Schematics Acquired . | . . . . Parts Built . | . . . . Authchips . | . . . . Time . | . . . . Total Part Build Rating . | . . . . Parts Repaired . | . . . . Time . | . . . . Parts Recycled . | . . . . Recycled Matter . | . . . . Retrieved Matter . | . . . . Retrieved Components . | . . . . Parts Scanalyzed . | . . . . Part Schematics Acquired . | . . . . Parts Damaged . | . . . . Bothacking | -11 -10 -10 -10 ------------ Run | Yrd Mat Min Sub Used RIF Installer . | . . . . Robots Hacked 4 | . . 4 . Non-combat 4 | . . 4 . Combat . | . . . . Robot Hacks Applied 7 | . . 7 . parse_system 3 | . . 3 . no_distress 4 | . . 4 . Relay Couplers Released . | . . . . Fabnet Peak Effective % . | . . . . Robots Rewired . | . . . . Allies Hacked . | . . . . Hacks Repelled . | . . . . Allies | -11 -10 -10 -10 -------- Run | Yrd Mat Min Sub Total Allies . | . . . . Largest Group . | . . . . Highest-Rated Group . | . . . . Highest-Rated Ally . | . . . . Total Orders . | . . . . Ally Attacks . | . . . . Total Damage . | . . . . Kills . | . . . . Allies Corrupted . | . . . . Allies Melted . | . . . . Intel | -11 -10 -10 -10 ------- Run | Yrd Mat Min Sub Robot Analysis Total . | . . . . Derelict Logs Recovered 2 | . . 2 . Drone Launches . | . . . . Drone Recoveries . | . . . . Exploration | -11 -10 -10 -10 ------------- Run | Yrd Mat Min Sub Turns Passed 1412 | 92 215 401 704 Spaces Moved 1545 | 60 127 611 747 Core 15 | 15 . . . Treads . | . . . . Legs 143 | 45 98 . . Wheels 471 | . . . 471 Hover . | . . . . Flight 916 | . 29 611 276 Fastest Speed 37 | 50 37 37 37 Average Speed 61 | 102 101 37 71 Slowest Speed 120 | 120 120 37 110 Overloaded Moves . | . . . . Propulsion Burnouts . | . . . . Robots Hopped 6 | . 1 5 . Cave-ins Triggered . | . . . . Exploration Rate (%) 42 | 7 24 90 48 Regions Visited 3 Branch Regions 2 Pre-discovered Areas 3 | . . 3 . Known Exits Taken . | . . . . Unknown Exits Taken 3 | 1 1 1 . Scrap Searched 2 | . . 1 1 Spaces Dug 1 | . . 1 . Terrain Destroyed 9 | . 8 1 . Melee 1 | . . 1 . Projectile . | . . . . AOE 8 | . 8 . . Terrain Rammed . | . . . . Walls Destroyed . | . . . . Machines Disabled . | . . . . Actions | -11 -10 -10 -10 --------- Run | Yrd Mat Min Sub Total 1830 | 82 183 715 850 Wait 48 | 3 9 14 22 Move 1531 | 59 124 601 747 Hop 5 | . 1 4 . Pick Up 33 | 10 9 9 5 Fast Attach 11 | . 4 2 5 Attach 12 | 5 2 2 3 Detach 3 | . . 1 2 Swap 50 | . 8 22 20 Drop 37 | . 9 16 12 Fire 66 | 5 17 21 23 Melee 34 | . . 23 11 Ram . | . . . . Kick . | . . . . Crush . | . . . . Escape Stasis . | . . . . Rewire . | . . . . Trap . | . . . . Miscellaneous . | . . . . Route ------- -11/Scrapyard -10/Materials -10/Mines (discovered 3 exits: [*Mat x2] / *Sub) -10/Subcaves (discovered 1 exit: [*Mat]) History --------- Turn | Location | Event 2 | -11/Scrapyard | Met Revision 17 65 | -11/Scrapyard | Discovered new exit (range 8) 93 | -11/Scrapyard | Entered Materials 289 | -10/Materials | Discovered new exit (range 12) 308 | -10/Materials | Entered Mines 336 | -10/Mines | Discovered new exit (range 11) 340 | -10/Mines | Met a Derelict bent on vengeance 458 | -10/Mines | Discovered new exit (range 15) 486 | -10/Mines | Build established: Scavenger-Mutant 605 | -10/Mines | Learned location of Storage (-8) 619 | -10/Mines | A weapon hastily lodged in a ceiling crevice suddenly fell to the ground 705 | -10/Mines | Discovered new exit (range 3) 709 | -10/Mines | Entered Subcaves 751 | -10/Subcaves | Visited Clippyterm 752 | -10/Subcaves | Learned Research machine intel 758 | -10/Subcaves | Shifting Twisted Machinery released Spk. Treads 765 | -10/Subcaves | Discovered new exit (range 11) 767 | -10/Subcaves | Shifting Twisted Machinery released Battle Rifle 878 | -10/Subcaves | Core integrity fell below 50% 1127 | -10/Subcaves | Shifting Twisted Machinery released Sub. Machine Gun 1130 | -10/Subcaves | Shifting Twisted Machinery released Sub. Power Source 1264 | -10/Subcaves | A swath of the cavern ceiling suddenly collapsed 1394 | -10/Subcaves | Build established: Mutant 1398 | -10/Subcaves | Core integrity fell below 20% 1413 | -10/Subcaves | Destroyed by ZX-QEX(R) with Subdweller Machine Gun Last Messages --------------- [Achievement: Crack Shot] K1-URE(R) destroyed. Sub. Power Source shoots sparks and powers down. Dropped Broken Sub. Power Source. Dropped Ion Engine. Acquired Sub. Power Source. Acquired 36 matter. S-10 Pest destroyed. Flight Unit fries itself beyond repair. Y-45 Defender destroyed. Acquired 57 matter. Lgt. Ion Engine fries itself beyond repair. Acquired 18 matter. Lgt. Treads fries itself beyond repair. A swath of the cavern ceiling suddenly collapses. Acquired 13 matter. Acquired 11 matter. SG-BPJ(R) suffers critical hit (Destroy). Battle Rifle destroyed. Map ----- +----------------------------------------------------+ | ?#??#?# #### ### # ###### ##????#????#?# | | ??#?#?#####?# ### # ##?## ##?#?#????##?# | | ???###??##??## ### ## ###### ##??#??????## | | ??## ##?#?#??## ###### # #?## #???#??#?##?? | | ??# #?####### ###?## ###?# #?#??#?#?#?#? | | ??# ### ### #?## ###?#??##???????#???? | | #?# ## ##?#### ###?###??###?##???### | | ##?# ## ###????### ###?# ###????#??#??## | | #?## ### ###???#### ### ##??????#??### | | #### ## ##??#?#### ###???????### | | ## ######### #????#?#?###? | | ## ### ##????#####?# | | ## ## ####?##%#### | | #### ## ## ### ##### ?#?# | | ##?##### ## ### #### #?### | | ## ######### ## #?# ### #??#? | | #### ####??## ### ## ## ##? ###?? | | #??####?????## #### ######## ###### ##?? | | ??#???#??????# ##### #######?## #### ### | | ????#?######?# ###### ###?##?### ## ## | | ??#????#??########?# ###??#?# | | ??#????#?##?##?#?#?# RR##?#?## | | ??#???##????#?# ? ?## ###### ## # | | ??#??#??##???#? ??## ### ### #### # | | ?????????#??###???#?# ## ??######### # | | ????#??#????#??# ???# @ ## ##?#?#??# #" # | | ???????????##?## ## ## #??#?" " #"" # | | ??????????###?# ## ## "??# # # #"#### | | ???????????#?# ## ### # # "# "####?? | | ????????#?##?## ### #####?## "#?" ##"" ###??? | | ????????????#?###??######????#####?## # "####??# | | ????????????#???#?#?###?#?#??????#?## "" #??#??# | | ???????????##?#??#??#???#?#?????#??### ?##???# | | ???????????##?##????##?#?#???#?###?### ??#??## | | ????????????##???#??????????????????### ???#?# | | ?????????????#???????#???#?#???????#??## #??#### | | ???????????#??????####?##?????????????#?#???### | | ????????????#??#????????#??????????#????????## | | ??????????????????#?????#?#??#??????????????## | | ???????????#???????#?##????????#???????????## | | ???????????????#??#?#?##???#????#?????????# | | ??????????????????????????????##???????#?# | | ?????????????????????????#???????????????# ## | | ?????????????????????????#??????????????#?????#### | | ?????????????????????????????????????????????????? | | ???????????????????????????????????????????????##? | | ???????????????????????????????????????????????##? | | ????????????????????????????????????????????#???? | | ?????????????????????????????????????????????????? | | ???????????????????????????????????????????????? ? | +----------------------------------------------------+ Best States ------------- Heat Dissipation 35 Energy Generation 15 Energy Capacity 250 Matter Stores 300 Matter Capacity 350 Sight Range 16 Terrain Scan Range 16 Terrain Scan Density 85 Evasion (%) 62 Item Schematics ----------------- None Robot Schematics ------------------ None Fabricated ------------ Nothing Alien Tech Used ----------------- None Achievements -------------- Crack Shot Challenges ------------ None Game ------ Seed RecyclingVisualCharge Manual? 0 Play Time 01:05:34 Cumulative 1.9 hours Start 2024.04.28 @ 08:25:58 End 2024.04.28 @ 19:26:42 Sessions 3 Manual Loads 0 Difficulty Rogue Special Mode None Game No. 2 Rogue 2 Adventurer 0 Explorer 0 Win Type - Total 0 Types 0/0/0/0/0/0/0/0/0 Lore% 1 Gallery% 3 Achievement% 1 Wizard Run 0 Options --------- Layout 1 ASCII 0 Keyboard 0 Movement Mouse Keybinds 0 Fullscreen 1 Font 32/Terminus Map View 50x35 Zoom Use 19% Tactical HUD 0 Map Filters NONE Filters NONE Steam 1 RUN: 2aca0b56-d9b5-4a0f-b125-c16d68675077